Cogmind - Beta 16.1 @@@ ROGUE MODE // 2026.04.02 @ 07:35:21 Player: Dosh Result: Destroyed by DU-RNM(R) with Subdweller Laser Performance ------------- Evolutions (0) 0 Regions Visited (2) 400 Robots Destroyed (36) 180 Value Destroyed (948) 948 Prototype IDs (0) 0 Alien Tech Used (0) 0 Bonus (0) 0 TOTAL SCORE: 1528 Bonus ------- None Cogmind --------- Core Integrity 0/250 Matter 249/300 Energy 250/250 System Corruption 0% Temperature Cool (6) Movement Treading (480) Ox4 Location -10/Subcaves Parts ------- > --- POWER (1) -------- Ion Engine > --- PROPULSION (2) --- Light Treads > --- UTILITY (2) ------ Huge Storage Unit Seismic Detector > --- WEAPON (2) ------- Heavy Assault Rifle Light Cannon > --- INVENTORY (25) --- Light Treads Armored Wheel Armored Wheel Armored Wheel Armored Wheel Cooling System Cooling System Subdweller Optics Propulsion Shielding Hacking Suite Assault Rifle Light Assault Rifle Heavy Assault Rifle Heavy Assault Rifle Heavy Assault Rifle Heavy Battle Rifle Grenade Launcher Multitool Makeshift Sword Peak State ------------ > --- POWER ------------ Ion Engine > --- PROPULSION ------- Light Treads Light Treads > --- UTILITY ---------- Huge Storage Unit Seismic Detector > --- WEAPON ----------- Heavy Assault Rifle Makeshift Sword > --- INVENTORY -------- Light Treads Armored Wheel Armored Wheel Armored Wheel Armored Wheel Cooling System Cooling System Subdweller Optics Propulsion Shielding Hacking Suite Assault Rifle Light Assault Rifle Heavy Assault Rifle Heavy Assault Rifle Heavy Assault Rifle Heavy Battle Rifle Light Cannon Grenade Launcher Multitool [Rating: 14] Favorites ----------- Power Ion Engine Engine Ion Engine Propulsion Light Treads Treads Light Treads Utility Huge Storage Unit Device Seismic Detector Storage Huge Storage Unit Protection Propulsion Shielding Weapon Heavy Assault Rifle Ballistic Gun Heavy Assault Rifle Ballistic Cannon Light Cannon Launcher Grenade Launcher Slashing Weapon Makeshift Sword Build | -11 -10 -10 ------- Run | Yrd Mat Sub Slots Evolved . | . . . Power . | . . . Propulsion . | . . . Utility . | . . . Weapon . | . . . Parts Attached 17 | 5 7 5 Power 2 | 1 1 . Engine 2 | 1 1 . Core . | . . . Reactor . | . . . Propulsion 2 | 2 . . Treads 2 | 2 . . Leg . | . . . Wheel . | . . . Hover . | . . . Flight . | . . . Utility 4 | . 2 2 Device 2 | . . 2 Storage 1 | . 1 . Processor . | . . . Hackware . | . . . Protection 1 | . 1 . Artifact . | . . . Weapon 9 | 2 4 3 Energy Gun . | . . . Energy Cannon . | . . . Ballistic Gun 6 | 2 3 1 Ballistic Cannon 1 | . . 1 Launcher 1 | . 1 . Special Weapon . | . . . Impact Weapon . | . . . Slashing Weapon 1 | . . 1 Piercing Weapon . | . . . Special Melee Weapon . | . . . Unidentified Prototypes . | . . . Parts Lost 3 | . 2 1 Power 1 | . 1 . Propulsion 1 | . . 1 Utility . | . . . Weapon 1 | . 1 . Highest Loss Streak 1 | . 1 1 To Critical Strikes . | . . . Average Backups 15 | 1 12 17 Power . | . . . Propulsion 4 | . 4 5 Utility 3 | . 2 4 Weapon 6 | . 5 6 Tool/Special . | . . . Unused Backups 12 | 1 . 11 Power . | . . . Propulsion 5 | . . 5 Utility 4 | 1 . 3 Weapon 2 | . . 2 Tool/Special 1 | . . 1 Average Slot Usage (%) 97 | . 92 100 Engine 12 | . 11 14 Treads 27 | . 27 28 Device 8 | . . 13 Storage 13 | . 13 14 Protection 4 | . 11 . Ballistic Gun 24 | . 26 23 Slashing Weapon 1 | . . 2 Peak Build Rating 14 | 5 11 14 Average Rating 10 | 3 8 12 On Entrance 5 | . 5 11 Avg Prop Armor Cover (%) . | . . . Naked Turns . | . . . Heaviest Build 93 | 6 92 93 Greatest Support 40 | 40 40 40 Greatest Overweight (x) 2 | . 2 2 Average Overweight (x) 1 | . 1 2 Largest Inventory Capacity 25 | 5 25 25 Average Capacity 24 | 5 24 25 Most Carried 19 | 2 16 19 Average Carried 15 | . 12 17 Final Capacity 25 | 5 25 25 Final Carried 19 | 2 15 19 Class Distribution -------------------- 100% | Mutant Dominant Class ---------------- Mutant | -10/Materials Mutant | -10/Subcaves Resources | -11 -10 -10 ----------- Run | Yrd Mat Sub Matter Collected 973 | 182 387 404 Remotely . | . . . Salvage Created 1144 | . 917 227 Parts 73 | . 59 14 Haulers Intercepted 2 | . 2 . Recyclers Shooed 3 | . 3 . Parts Field Recycled . | . . . Retrieved Matter . | . . . Parts Self-Destructed 7 | . . 7 Prevented . | . . . Parts Restored . | . . . Kills | -11 -10 -10 ------- Run | Yrd Mat Sub Combat Hostiles Destroyed 25 | . 19 6 Guns 15 | . 11 4 AOE 10 | . 8 2 Classes Destroyed 9 | . 8 1 Worker 2 | . 2 . Builder 1 | . 1 . Hauler 2 | . 2 . Recycler 2 | . 2 . Operator 1 | . 1 . Watcher 3 | . 3 . Swarmer 3 | . 3 . Grunt 18 | . 16 2 Subdweller 4 | . . 4 Best Kill Streak 7 | . 7 2 Combat Bots Only 6 | . 6 2 Max Kills in Single Turn 2 | . 2 1 Gunslinging . | . . . Exploded 2 | . 2 1 Melee . | . . . Uniques/NPCs Destroyed . | . . . Combat | -11 -10 -10 -------- Run | Yrd Mat Sub Hostile Shots Fired 93 | . 50 43 Missed 13 | . 7 6 Hits 80 | . 43 37 Projectile 80 | . 43 37 Damage Taken 1196 | . 502 694 Core 250 | . 68 182 Absorbed by Shields . | . . . Redirected to Shielding 37 | . 37 . Regen/Repaired (Parts) 191 | . 191 . Core Remaining (%) 100 | 100 . . Volleys Fired 95 | . 65 30 Largest 2 | . 2 2 Hottest 56 | . 53 56 Shots Fired 187 | . 130 57 Gun 169 | . 121 48 Cannon 5 | . . 5 Launcher 13 | . 9 4 Special . | . . . Kinetic 174 | . 121 53 Thermal . | . . . Explosive 13 | . 9 4 Electromagnetic . | . . . Robot Hit Streak 13 | . 12 13 Robot Miss Streak 4 | . 4 2 Penetration Max . | . . . Secondary Targets 3 | . 3 . Max Gunslinging Chain 1 | . 1 . Shots Hit Robots 117 | . 76 41 Core Hits 65 | . 51 14 Critical Kills 1 | . 1 . Critical Parts Destroyed 1 | . 1 . Critical Strikes 3 | . 2 1 Destroy 3 | . 2 1 Melee Attacks 41 | . . 41 Impact . | . . . Slashing 41 | . . 41 Piercing . | . . . Sneak Attacks 1 | . . 1 Combat Hostiles . | . . . Follow-up Attacks . | . . . Damage Inflicted 2214 | . 1482 732 Guns 1296 | . 805 491 Cannons 35 | . . 35 Explosions 863 | . 659 204 Melee . | . . . Ramming 20 | . 18 2 Kinetic 1331 | . 805 526 Thermal . | . . . Explosive 863 | . 659 204 Electromagnetic . | . . . Impact . | . . . Slashing . | . . . Piercing . | . . . Highest Corruption . | . . . Average Corruption . | . . . Corruption Purged . | . . . Corruption Blocked . | . . . Overload Shots . | . . . Overflow Damage 26 | . 26 . Projectiles . | . . . Explosions 26 | . 26 . Melee . | . . . Knockbacks 1 | . . 1 Impact . | . . . Kinetic 1 | . . 1 Secondary . | . . . Self-Inflicted Damage 28 | . 28 . Shots 2 | . 2 . Rammed 5 | . 4 1 Targets Rammed 6 | . 5 1 Kicked . | . . . Crushed 1 | . 1 . Highest Temperature 18 | . 18 . Average Temperature 7 | . 7 . Received Heat Transfer 429 | . 237 192 Siege Activations . | . . . Martial Activations . | . . . Shielding Activations . | . . . Robots Disrupted . | . . . Combat Hostiles . | . . . Robots Corrupted . | . . . Combat Hostiles . | . . . Parts Fried . | . . . Impact Corruptions . | . . . Robots Melted . | . . . Combat Hostiles . | . . . Parts Melted . | . . . Heat Transferred . | . . . Parts Sabotaged . | . . . Parts Stolen . | . . . Parts Stripped . | . . . Power Chain Reactions . | . . . Alert | -11 -10 -10 ------- Run | Yrd Mat Sub Maximum Alert Level 1 | . 1 . Low Security (%) 77 | 100 76 . Level 1 22 | . 23 . Level 2 . | . . . Level 3 . | . . . Level 4 . | . . . Level 5 . | . . . High Security . | . . . Max Security . | . . . Peak Influence 359 | . 359 . Initial . | . . . Average 110 | . 114 . Influence Increases 739 | . 689 50 Destroy 0b10 Robot/C 420 | . 380 40 Destroy 0b10 Robot/NC 55 | . 55 . Destroy Leader 90 | . 80 10 Successful Hack 16 | . 16 . Disable Machine 30 | . 30 . Destroy Structure 83 | . 83 . Lose Combat Pursuer 45 | . 45 . Influence Decreases 739 | . 367 372 Entered New Map 155 | . . 155 Time Decay 564 | . 347 217 Lost Part 20 | . 20 . Squads Dispatched 4 | . 4 . Investigation 3 | . 3 . Extermination . | . . . Reinforcement 1 | . 1 . Assault . | . . . Garrison . | . . . Intercept . | . . . Searches Triggered . | . . . Construction Impeded . | . . . Haulers Reinforced . | . . . Active Scanning Responses . | . . . Cargo Convoy Interrupts . | . . . Stealth | -11 -10 -10 --------- Run | Yrd Mat Sub Distress Signals . | . . . Communications Jammed . | . . . Distress Signals . | . . . Times Spotted 31 | . 24 7 Peak Tracking Total 3 | . 3 2 Tactical Retreats 1 | . 1 . Traps | -11 -10 -10 ------- Run | Yrd Mat Sub Traps Triggered 3 | . 3 . Indirectly . | . . . Trap Hack Attempts . | . . . Triggered . | . . . Disarmed . | . . . Reprogrammed . | . . . Reused . | . . . Traps Extracted . | . . . Installed . | . . . Triggered . | . . . Machines | -11 -10 -10 ---------- Run | Yrd Mat Sub Machines Disabled 2 | . 2 . Max in Single Turn 2 | . 2 . Machines Repaired . | . . . Machines Dismantled . | . . . Machines Sabotaged . | . . . Overloaded Fab Kills . | . . . Hacking | -11 -10 -10 --------- Run | Yrd Mat Sub Machines Accessed 7 | . 7 . Terminals 4 | . 4 . Fabricators . | . . . Repair Stations 1 | . 1 . Recycling Units 2 | . 2 . Scanalyzers . | . . . Garrison Access . | . . . Total Hacks 19 | . 19 . Successful 8 | . 8 . Failed 11 | . 11 . Catastrophic 2 | . 2 . Database Lockouts . | . . . Manual 8 | . 8 . Terminals 9 | . 9 . Fabricators . | . . . Repair Stations 6 | . 6 . Recycling Units 4 | . 4 . Scanalyzers . | . . . Garrison Access . | . . . Terminal Hacks 2 | . 2 . Robot Schematic 1 | . 1 . Robot Analysis 1 | . 1 . Fabricator Hacks . | . . . Repair Station Hacks 4 | . 4 . Scan Component 2 | . 2 . Repair 2 | . 2 . Recycling Unit Hacks 2 | . 2 . Retrieve Components 2 | . 2 . Scanalyzer . | . . . Garrison Access Hacks . | . . . Unauthorized Hacks . | . . . Terminals . | . . . Fabricators . | . . . Repair Stations . | . . . Recycling Units . | . . . Scanalyzers . | . . . Garrison Access . | . . . Data Cores Recovered . | . . . Used . | . . . Hacking Detections 5 | . 5 . Full Trace Events 2 | . 2 . Feedback Events . | . . . Feedback Blocked . | . . . Robot Schematics Acquired 1 | . 1 . Robots Built . | . . . Authchips . | . . . Time . | . . . Total Robot Build Rating . | . . . Part Schematics Acquired . | . . . Parts Built . | . . . Authchips . | . . . Time . | . . . Total Part Build Rating . | . . . Part Studies Acquired . | . . . Parts Repaired 2 | . 2 . Time 52 | . 52 . Parts Recycled . | . . . Recycled Matter . | . . . Retrieved Matter . | . . . Retrieved Components 20 | . 20 . Parts Scanalyzed . | . . . Part Schematics Acquired . | . . . Parts Damaged . | . . . Bothacking | -11 -10 -10 ------------ Run | Yrd Mat Sub Used RIF Installer . | . . . Robots Hacked . | . . . Non-combat . | . . . Combat . | . . . Robot Hacks Applied . | . . . Relay Couplers Released . | . . . Fabnet Peak Effective % . | . . . Robots Rewired . | . . . Allies Hacked . | . . . Hacks Repelled . | . . . Allies | -11 -10 -10 -------- Run | Yrd Mat Sub Total Allies . | . . . Largest Group . | . . . Highest-Rated Group . | . . . Highest-Rated Ally . | . . . Total Orders . | . . . Ally Attacks . | . . . Total Damage . | . . . Kills . | . . . Allies Corrupted . | . . . Allies Melted . | . . . Intel | -11 -10 -10 ------- Run | Yrd Mat Sub Active Infowar (turns) 3177 | . . 3177 Optics 1110 | . . 1110 Seismic 2067 | . . 2067 Robot Analysis Total 1 | . 1 . Derelict Logs Recovered . | . . . Drone Launches . | . . . Drone Recoveries . | . . . Exploration | -11 -10 -10 ------------- Run | Yrd Mat Sub Turns Passed 5535 | 80 2201 3254 Spaces Moved 1610 | 51 608 951 Core 10 | 10 . . Treads 1600 | 41 608 951 Legs . | . . . Wheels . | . . . Hover . | . . . Flight . | . . . Fastest Speed 50 | 50 160 320 Average Speed 309 | 138 308 320 Slowest Speed 320 | 160 320 320 Overloaded Moves . | . . . Propulsion Burnouts . | . . . Robots Hopped . | . . . Potential Cave-ins . | . . . Cave-ins Triggered . | . . . Exploration Rate (%) 45 | 5 98 32 Regions Visited 2 Branch Regions 1 Pre-discovered Areas . | . . . Known Exits Taken . | . . . Unknown Exits Taken 2 | 1 1 . Scrap Searched 3 | . . 3 Spaces Dug 7 | . . 7 Terrain Destroyed 137 | . 104 33 Melee 7 | . . 7 Projectile . | . . . AOE 130 | . 104 26 Terrain Rammed . | . . . Walls Destroyed . | . . . Machines Disabled . | . . . Actions | -11 -10 -10 --------- Run | Yrd Mat Sub Total 1918 | 59 803 1056 Wait 114 | . 98 16 Move 1608 | 50 607 951 Hop . | . . . Pick Up 21 | 3 15 3 Fast Attach 11 | 5 5 1 Attach 2 | . 2 . Detach 1 | . . 1 Swap 18 | . 6 12 Drop 1 | 1 . . Fire 95 | . 65 30 Melee 41 | . . 41 Ram . | . . . Kick . | . . . Crush 6 | . 5 1 Escape Stasis . | . . . Rewire . | . . . Trap . | . . . Miscellaneous . | . . . Route ------- -11/Scrapyard -10/Materials (discovered 6 exits: [*Mat x3] / [*Min x2] / [*Sub]) -10/Subcaves (discovered 1 exit: [*Mat]) History --------- Turn | Location | Event 4 | -11/Scrapyard | Discovered new exit (range 15) 81 | -11/Scrapyard | Entered Materials 305 | -10/Materials | Build established: Mutant 457 | -10/Materials | Discovered new exit (range 4) 757 | -10/Materials | Discovered new exit (range 13) 1409 | -10/Materials | Discovered new exit (range 13) 1846 | -10/Materials | Discovered new exit (range 8) 2014 | -10/Materials | Discovered new exit (range 16) 2149 | -10/Materials | Repaired Lgt. Treads 2176 | -10/Materials | Repaired Lgt. Treads 2194 | -10/Materials | Discovered new exit (range 15) 2282 | -10/Materials | Entered Subcaves 2283 | -10/Subcaves | Approached by a straggling Scientist 2442 | -10/Subcaves | Core integrity fell below 50% 2588 | -10/Subcaves | A swath of the cavern ceiling suddenly collapsed 3158 | -10/Subcaves | Discovered new exit (range 20) 5364 | -10/Subcaves | Core integrity fell below 20% 5536 | -10/Subcaves | Destroyed by DU-RNM(R) with Subdweller Laser Last Messages --------------- 04573_ HQ-L7D(u) builds Twisted Machinery. SJ-H6A(c): "I think it's somewhere west of here" 04577_ HQ-L7D(u) builds Twisted Machinery. SJ-H6A(c): "I think it's somewhere west of here" SJ-H6A(c): "I think it's somewhere southwest of here" 05169_ Acquired 30 matter. SJ-H6A(c): "I think it's somewhere west of here" 05292_ HQ-L7D(u) tweaks Twisted Machinery. 05303_ HQ-L7D(u) builds Twisted Machinery. SJ-H6A(c): "I think it's somewhere west of here" 05351_ CJ-YI4(R) suffers critical hit (Destroy). 05356_ CJ-YI4(R) affixes Scrap Shield Fragment to Scrap Shield. 05366_ CJ-YI4(R) destroyed. 05369_ Acquired 52 matter. 05370_ Subatomizers dissect the Sub. Laser. 05388_ HQ-L7D(u) builds Twisted Machinery. 05390_ Sneak attack on HQ-L7D(u). SJ-H6A(c): "I think it's somewhere west of here" 05531_ Lgt. Treads destroyed. 05534_ DU-RNM(R) knocked back. Map ----- +----------------------------------------------------+ | ????????????????????????????????????????????# | | ????????????????????????????????????????????# | | ????????????????????????????????????????????# ### | | ???????????????????????????????????????????## ##?? | | ?????????????????????????????????????####### #?? | | ?????????????????????????????????????# %## & ##?? | | ?????????????????????????????????????#% "## ### | | ?????????????????????????????????????## &&& & | | ?????????????????????????????????????# # #" | | ?????????????????????????????????????# %### ## | | ?????????????????????????????????????####?# ### | | ??????????????????????????????????????????# #?# | | ??????????????????????????????????????????### #### | | ????????????????????????????????????????????##### | | ???????????????????????????????????????????????# | | ???????????????????????????????????????????????# | | ?????????????? ????????????????????????????????## | | ?????????????#" ????????????????????????????????## | | ?????????????# ????????????????????????????????# | | ?????????????? ??????????????????????????###??# | | ??????????????? ????????????????????????## ###? | | ???????????????? #######????????????????# ## | | ????????????????"""" ##??????????????## # | | ????????????????"""" #??????????????# # | | ????????????????????%R #??????????????# # | | ???????????????????????# @ #???????????????# ""# | | ?????????????????????### c #####???????????# "# | | ?????????????????????# ## #???????????## | | ??????????????? " " ### #????????????# ## | | ??????????????? """[ ##??# ####?????????# "### | | ?????????????? # #????## ######???## ##?# | | ?????????????" ###?###??????## ##### #??# | | ?????????????????????????????# #??# | | ?????????????????????????????# ## ##??# | | ?????????????????????????????## ####### ##???? | | ??????????????????????????????####?????######????? | | ?????????????????????????????????????????????????? | | ?????????????????????????????????????????????????? | | ?????????????????????????????????????????????????? | | ?????????????????????????????????????????????????? | | ?????????????????????????????????????????????????? | | ?????????????????????????????????????????????????? | | ?????????????????????????????????????????????????? | | ?????????????????????????????????????????????????? | | ?????????????????????????????????????????????????? | | ?????????????????????????????????????????????????? | | ?????????????????????????????????????????????????? | | ?????????????????????????????????????????????????? | | ?????????????????????????????????????????????????? | | ?????????????????????????????????????????????????? | +----------------------------------------------------+ Best States ------------- Heat Dissipation 25 Energy Generation 10 Energy Capacity 250 Matter Stores 300 Matter Capacity 300 Sight Range 21 Terrain Scan Density 10 Propulsion Shielding 33 Evasion (%) 40 Recoil Reduction 2 Item Schematics ----------------- None Robot Schematics ------------------ M-13 Machinist | -10/Materials | Hacked Fabricated ------------ Nothing Repaired ---------- Lgt. Treads | 22% | -10/Materials Lgt. Treads | 40% | -10/Materials Studied --------- None Alien Tech Used ----------------- None Achievements -------------- None Challenges ------------ None Game ------ Seed DirtyMicroRipper Manual? 0 Play Time 00:17:00 Cumulative 825.8 hours Start 2026.04.02 @ 07:23:46 End 2026.04.02 @ 07:35:21 Sessions 1 Manual Loads 0 Difficulty Rogue Special Mode None Game No. 412 Rogue 412 Adventurer 0 Explorer 0 Win Type - Total 70 Types 45/5/6/4/1/1/3/3/1/1 Lore% 92 Gallery% 82 Achievement% 69 Wizard Run 0 Options --------- Layout 0 ASCII 0 Keyboard 1 Movement Numpad Keybinds 0 Fullscreen 2 Font 18/SmallcapsGlow Map View 76x50 Zoom Use 0% Tactical HUD 1 Map Filters NONE Filters NONE Steam 1 RUN: bd514772-f499-4824-836d-5bc9bc56b858